Cogmind - Beta 12 @@@ ROGUE MODE // 2023.03.03 @ 21:02:11 Player: Heclapar Result: Destroyed by L-31 Rogue with Katana Performance ------------- Evolutions (2) 1000 Regions Visited (9) 1800 Robots Destroyed (146) 730 Value Destroyed (4639) 4639 Prototype IDs (35) 700 Alien Tech Used (0) 0 Bonus (2225) 2225 TOTAL SCORE: 11094 Bonus ------- High Alert Combat Kills 1525 Entered Garrisons 400 Aligned with FarCom 300 Cogmind --------- Core Integrity 0/550 Matter 254/300 Energy 100/100 System Corruption 8% Temperature Cool (0) Movement Treading (245) Ox1 Location -8/Materials Parts ------- > --- POWER (1) -------- (None) > --- PROPULSION (2) --- Armored Treads Medium Treads > --- UTILITY (4) ------ Improved Heat Sink High-capacity Storage Unit Advanced Targeting Computer Hacking Suite > --- WEAPON (4) ------- Heavy Laser Gauss Rifle Gauss Rifle > --- INVENTORY (20) --- Enhanced Nuclear Core Enhanced Nuclear Core Medium Treads Medium Treads Medium Treads Carbon-fiber Leg Carbon-fiber Leg Improved Carbon-fiber Leg Improved Carbon-fiber Leg Improved Carbon-fiber Leg Improved Carbon-fiber Leg Large Matter Pod (150) Core Analyzer Transmission Jammer Light Armor Plating Shock Rifle Pulse Rifle Advanced Beam Rifle Heavy Laser Longsword +1 Peak State ------------ > --- POWER ------------ Enhanced Nuclear Core > --- PROPULSION ------- Armored Treads Medium Treads > --- UTILITY ---------- Improved Heat Sink High-capacity Storage Unit Advanced Targeting Computer Hacking Suite > --- WEAPON ----------- Heavy Laser Enhanced Autogun Gauss Rifle Longsword +1 > --- INVENTORY -------- Enhanced Nuclear Core Enhanced Nuclear Core Medium Treads Medium Treads Medium Treads Carbon-fiber Leg Carbon-fiber Leg Large Matter Pod Transmission Jammer Light Armor Plating Shock Rifle Pulse Rifle Advanced Beam Rifle Heavy Laser Gauss Rifle [Rating: 47] Favorites ----------- Power Heavy Deuterium Engine Engine Heavy Deuterium Engine Power Core Enhanced Nuclear Core Propulsion Carbon-fiber Leg Treads Light Treads Leg Carbon-fiber Leg Utility Advanced Targeting Computer Device Improved Heat Sink Storage Large Storage Unit Processor Advanced Targeting Computer Hackware Hacking Suite Protection Light Armor Plating Weapon Enhanced Autogun Energy Gun Heavy Particle Gun Ballistic Gun Enhanced Autogun Launcher Rocket Launcher Slashing Weapon Longsword +1 Build | -11 -10 -10 -10 -9 -8 -8 -8 -8 -8 ------- Run | Jun Mat Min Exi Min Mat Gar Mat Gar Mat Slots Evolved 4 | . . . . . 4 . . . . Power . | . . . . . . . . . . Propulsion . | . . . . . . . . . . Utility 2 | . . . . . 2 . . . . Weapon 2 | . . . . . 2 . . . . Parts Attached 94 | . 2 2 . . 20 20 24 19 7 Power 7 | . . . . . 2 . 2 2 1 Engine 4 | . . . . . 2 . 2 . . Core 3 | . . . . . . . . 2 1 Reactor . | . . . . . . . . . . Propulsion 13 | . . . . . 2 2 6 2 1 Treads 7 | . . . . . 2 . 2 2 1 Leg 6 | . . . . . . 2 4 . . Wheel . | . . . . . . . . . . Hover . | . . . . . . . . . . Flight . | . . . . . . . . . . Utility 17 | . 2 . . . 5 2 6 1 1 Device 8 | . . . . . 3 2 2 . 1 Storage 2 | . 1 . . . . . 1 . . Processor 4 | . 1 . . . 2 . 1 . . Hackware 1 | . . . . . . . 1 . . Protection 2 | . . . . . . . 1 1 . Artifact . | . . . . . . . . . . Weapon 57 | . . 2 . . 11 16 10 14 4 Energy Gun 9 | . . 1 . . 4 . 3 . 1 Energy Cannon . | . . . . . . . . . . Ballistic Gun 30 | . . 1 . . 6 8 5 7 3 Ballistic Cannon . | . . . . . . . . . . Launcher 10 | . . . . . 1 3 . 6 . Special Weapon . | . . . . . . . . . . Impact Weapon . | . . . . . . . . . . Slashing Weapon 8 | . . . . . . 5 2 1 . Piercing Weapon . | . . . . . . . . . . Special Melee Weapon . | . . . . . . . . . . Unidentified Prototypes 7 | . . . . . 3 . 3 . 1 Corrupted Parts 1 | . . . . . . . 1 . . System Corruption 2 | . . . . . . . 2 . . Parts Lost 19 | . . . . . . 2 6 8 3 Power 3 | . . . . . . . 1 2 . Propulsion 4 | . . . . . . 1 2 1 . Utility 3 | . . . . . . 1 1 1 . Weapon 9 | . . . . . . . 2 4 3 Highest Loss Streak 6 | . . . . . . 1 3 6 2 To Critical Strikes 1 | . . . . . . . 1 . . Average Slot Usage (%) 98 | . 87 100 100 100 97 99 99 98 99 Engine 9 | . 14 14 14 14 9 9 8 8 . Treads 7 | . . . . . 9 7 6 18 18 Leg 12 | . 28 28 28 28 8 10 11 . . Device 6 | . . . . . 8 8 8 8 9 Storage 10 | . 15 14 14 14 9 9 9 9 9 Processor 13 | . . 14 14 14 16 18 13 9 9 Hackware 2 | . . . . . . . 5 9 9 Energy Gun 9 | . 14 14 14 14 10 . 15 12 6 Ballistic Gun 22 | . 14 14 14 14 24 33 20 17 26 Naked Turns . | . . . . . . . . . . Heaviest Build 72 | 11 31 28 28 28 45 45 66 72 64 Greatest Support 48 | 20 20 20 20 20 40 40 42 48 48 Greatest Overweight (x) 14 | . 1 1 1 1 14 1 2 1 1 Average Overweight (x) . | . . 1 1 1 1 1 1 . 1 Largest Inventory Capacity 20 | . 15 15 15 15 15 15 20 20 20 Average Capacity 16 | . 9 15 15 15 15 15 16 20 20 Most Carried 20 | . 8 14 15 15 15 15 19 20 20 Average Carried 15 | . 7 13 14 14 14 14 15 18 18 Final Capacity 20 | 8 15 15 15 15 15 15 20 20 20 Final Carried 20 | 6 7 14 15 15 15 15 18 15 20 Class Distribution -------------------- 38% | Gunner 33% | Mutant 24% | Skirmisher Dominant Class ---------------- Mutant | -10/Materials Mutant | -10/Mines Mutant | -10/Exiles Mutant | -9/Mines Gunner | -8/Materials Gunner | -8/Garrison Skirmisher | -8/Materials Skirmisher | -8/Garrison Scavenger-Skirmisher | -8/Materials Resources | -11 -10 -10 -10 -9 -8 -8 -8 -8 -8 ----------- Run | Jun Mat Min Exi Min Mat Gar Mat Gar Mat Matter Collected 3418 | 200 14 42 . . 545 1045 844 351 377 Remotely . | . . . . . . . . . . Salvage Created 5711 | . 99 . . . 1254 1070 1816 901 571 Parts 377 | . 6 . . . 75 73 115 74 34 Haulers Intercepted 8 | . . . . . 2 . 4 . 2 Recyclers Shooed 2 | . . . . . . . 1 . 1 Parts Field Recycled . | . . . . . . . . . . Retrieved Matter . | . . . . . . . . . . Parts Self-Destructed . | . . . . . . . . . . Prevented . | . . . . . . . . . . Kills | -11 -10 -10 -10 -9 -8 -8 -8 -8 -8 ------- Run | Jun Mat Min Exi Min Mat Gar Mat Gar Mat Combat Hostiles Destroyed 123 | . 2 . . . 25 32 30 23 11 Melee 1 | . . . . . . . 1 . . Guns 93 | . 2 . . . 17 21 29 13 11 AOE 29 | . . . . . 8 11 . 10 . Classes Destroyed 15 | . 1 . . . 8 2 3 1 . Worker 4 | . . . . . . . 2 . 2 Builder 3 | . . . . . 2 . 1 . . Hauler 8 | . . . . . 2 . 4 . 2 Recycler 4 | . . . . . 3 . 1 . . Operator 2 | . . . . . . . 1 . 1 Watcher 2 | . . . . . 1 . 1 . . Swarmer 37 | . . . . . 10 10 5 7 5 Cutter 3 | . . . . . . . . 3 . Grunt 39 | . 2 . . . 7 13 13 . 4 Duelist 2 | . . . . . 1 . 1 . . Sentry 28 | . . . . . 5 3 9 10 1 Specialist 2 | . . . . . 2 . . . . Hunter 5 | . . . . . . 3 1 . 1 Programmer 6 | . . . . . . 3 . 3 . Heavy 1 | . . . . . . . 1 . . Best Kill Streak 11 | . 1 . . . 11 4 7 8 10 Combat Bots Only 9 | . 1 . . . 9 4 5 8 5 Max Kills in Single Turn 6 | . 1 . . . 6 3 2 2 3 Gunslinging 1 | . . . . . . 1 1 . 1 Exploded 5 | . . . . . 5 3 . 2 . Melee 1 | . . . . . . . 1 . . Uniques/NPCs Destroyed . | . . . . . . . . . . Combat | -11 -10 -10 -10 -9 -8 -8 -8 -8 -8 -------- Run | Jun Mat Min Exi Min Mat Gar Mat Gar Mat Damage Taken 4371 | . 105 . . . 709 939 949 1180 489 Core 563 | . . . . . 112 118 119 164 50 Absorbed by Shields . | . . . . . . . . . . Regen/Repaired (Parts) 130 | . . . . . . . 130 . . Core Remaining (%) 100 | 100 . . . 100 . . . . . Volleys Fired 227 | . 14 2 . . 41 53 60 34 23 Largest 4 | . 2 2 . . 4 4 4 4 4 Hottest 174 | . 60 60 . . 174 103 164 155 150 Shots Fired 723 | . 28 4 . . 131 163 226 98 73 Gun 682 | . 28 4 . . 125 154 226 72 73 Cannon . | . . . . . . . . . . Launcher 41 | . . . . . 6 9 . 26 . Special . | . . . . . . . . . . Kinetic 507 | . 14 2 . . 89 154 142 45 61 Thermal 115 | . . . . . 29 . 58 16 12 Explosive 15 | . . . . . 6 9 . . . Electromagnetic 86 | . 14 2 . . 7 . 26 37 . Robot Hit Streak 19 | . 8 3 . . 13 17 16 19 14 Robot Miss Streak 5 | . 2 1 . . 3 2 5 2 2 Penetration Max 1 | . . . . . . . 1 . 1 Secondary Targets 13 | . . . . . 2 1 7 1 2 Max Gunslinging Chain 2 | . . . . . 1 1 2 1 1 Shots Hit Robots 475 | . 20 3 . . 83 106 149 65 49 Core Hits 244 | . 5 1 . . 48 62 69 36 23 Critical Kills 1 | . . . . . 1 . . . . Critical Parts Destroyed 1 | . . . . . . 1 . . . Critical Strikes 6 | . . . . . 3 1 . 2 . Burn 4 | . . . . . 2 . . 2 . Destroy 2 | . . . . . 1 1 . . . Melee Attacks 36 | . . . . . . 20 11 5 . Impact . | . . . . . . . . . . Slashing 36 | . . . . . . 20 11 5 . Piercing . | . . . . . . . . . . Sneak Attacks . | . . . . . . . . . . Combat Hostiles . | . . . . . . . . . . Follow-up Attacks . | . . . . . . . . . . Damage Inflicted 10374 | . 280 29 . . 1953 2669 2736 1662 1045 Guns 7801 | . 229 29 . . 1336 1554 2687 939 1027 Cannons . | . . . . . . . . . . Explosions 2506 | . 51 . . . 617 1115 . 723 . Melee 49 | . . . . . . . 49 . . Ramming 18 | . . . . . . . . . 18 Kinetic 5484 | . 91 14 . . 872 1554 1549 565 839 Thermal 1793 | . 51 . . . 453 . 757 344 188 Explosive 1693 | . . . . . 578 1115 . . . Electromagnetic 1337 | . 138 15 . . 50 . 381 753 . Impact . | . . . . . . . . . . Slashing 49 | . . . . . . . 49 . . Piercing . | . . . . . . . . . . Highest Corruption 8 | . . . . . . 4 6 8 8 Average Corruption 5 | . . . . . . 2 4 7 8 Corruption Purged . | . . . . . . . . . . Corruption Blocked . | . . . . . . . . . . Effects 103 | . . . . . . 14 42 32 15 Message Errors 29 | . . . . . . 1 13 10 5 Matter Fused 16 | . . . . . . 5 7 4 . Heat Flow Errors 5 | . . . . . . . 1 3 1 Energy Discharges 17 | . . . . . . 4 7 5 1 Parts Rejected 2 | . . . . . . . . 1 1 Parts Fused 1 | . . . . . . . . 1 . Data Loss (minor) 15 | . . . . . . 1 7 4 3 Data Loss (major) 6 | . . . . . . 1 2 2 1 Misfires 5 | . . . . . . 2 2 1 . Alerts 2 | . . . . . . . . 1 1 Weapon Failures 5 | . . . . . . . 3 . 2 Overload Shots . | . . . . . . . . . . Overflow Damage 37 | . 8 . . . 16 13 . . . Projectiles . | . . . . . . . . . . Explosions 37 | . 8 . . . 16 13 . . . Melee . | . . . . . . . . . . Knockbacks . | . . . . . . . . . . Impact . | . . . . . . . . . . Kinetic . | . . . . . . . . . . Secondary . | . . . . . . . . . . Self-Inflicted Damage 91 | . . . . . 37 18 . 36 . Shots 5 | . . . . . 2 1 . 2 . Rammed 1 | . . . . . . . . . 1 Targets Rammed 1 | . . . . . . . . . 1 Kicked . | . . . . . . . . . . Crushed . | . . . . . . . . . . Highest Temperature 321 | . 120 20 . . 271 302 321 176 252 Average Temperature 85 | . 61 15 . . 87 80 102 58 85 Received Heat Transfer 1053 | . 60 . . . 171 198 279 147 198 Effects 9 | . . . . . 3 . 6 . . Energy Bleed 1 | . . . . . . . 1 . . Interference 8 | . . . . . 3 . 5 . . Siege Activations . | . . . . . . . . . . Robots Corrupted . | . . . . . . . . . . Combat Hostiles . | . . . . . . . . . . Parts Fried 7 | . 1 . . . . . 1 5 . Impact Corruptions . | . . . . . . . . . . Robots Melted . | . . . . . . . . . . Combat Hostiles . | . . . . . . . . . . Parts Melted 2 | . . . . . . . . 2 . Heat Transferred 3654 | . 100 . . . 1012 . 1517 655 370 Parts Sabotaged . | . . . . . . . . . . Parts Stolen . | . . . . . . . . . . Parts Stripped . | . . . . . . . . . . Power Chain Reactions 5 | . 1 . . . 1 . . 3 . Missiles Intercepted . | . . . . . . . . . . Alert | -11 -10 -10 -10 -9 -8 -8 -8 -8 -8 ------- Run | Jun Mat Min Exi Min Mat Gar Mat Gar Mat Peak Influence 1498 | . 125 48 . . 603 1498 844 1110 836 Initial 729 | . . 48 . . . 391 729 536 511 Average 646 | . 85 26 . . 358 961 669 879 594 Maximum Alert Level 4 | . . . . . 2 4 3 4 3 Low Security (%) 16 | . 100 100 . 100 12 . . . . Level 1 5 | . . . . . 37 6 . . . Level 2 32 | . . . . . 50 18 53 15 92 Level 3 33 | . . . . . . 34 46 82 7 Level 4 11 | . . . . . . 40 . 1 . Level 5 . | . . . . . . . . . . High Security . | . . . . . . . . . . Max Security . | . . . . . . . . . . Squads Dispatched 15 | . 2 1 . . 4 . 6 . 2 Investigation 4 | . 1 1 . . . . 2 . . Extermination . | . . . . . . . . . . Reinforcement 5 | . 1 . . . 1 . 3 . . Assault 1 | . . . . . . . . . 1 Garrison 5 | . . . . . 3 . 1 . 1 Intercept . | . . . . . . . . . . Searches Triggered . | . . . . . . . . . . Construction Impeded . | . . . . . . . . . . Haulers Reinforced . | . . . . . . . . . . Active Scanning Responses . | . . . . . . . . . . Cargo Convoy Interrupts . | . . . . . . . . . . Stealth | -11 -10 -10 -10 -9 -8 -8 -8 -8 -8 --------- Run | Jun Mat Min Exi Min Mat Gar Mat Gar Mat Distress Signals 5 | . . . . . 4 . 1 . . Communications Jammed . | . . . . . . . . . . Distress Signals . | . . . . . . . . . . Times Spotted 145 | . 4 . . . 34 32 33 24 18 Peak Tracking Total 11 | . 2 . . . 11 4 5 6 5 Tactical Retreats 5 | . 1 . . . . . 1 2 1 Traps | -11 -10 -10 -10 -9 -8 -8 -8 -8 -8 ------- Run | Jun Mat Min Exi Min Mat Gar Mat Gar Mat Traps Triggered 11 | . 1 . . . . 6 1 3 . Indirectly . | . . . . . . . . . . Trap Hack Attempts . | . . . . . . . . . . Triggered . | . . . . . . . . . . Disarmed . | . . . . . . . . . . Reprogrammed . | . . . . . . . . . . Reused . | . . . . . . . . . . Traps Extracted . | . . . . . . . . . . Installed . | . . . . . . . . . . Triggered . | . . . . . . . . . . Exploded 1 | . . . . . . 1 . . . Machines | -11 -10 -10 -10 -9 -8 -8 -8 -8 -8 ---------- Run | Jun Mat Min Exi Min Mat Gar Mat Gar Mat Machines Disabled 10 | . 1 . . . 3 5 1 . . Max in Single Turn 1 | . 1 . . . 1 1 1 . . Phase Generator 1 | . . . . . . 1 . . . Machines Repaired . | . . . . . . . . . . Machines Sabotaged . | . . . . . . . . . . Overloaded Fab Kills . | . . . . . . . . . . Hacking | -11 -10 -10 -10 -9 -8 -8 -8 -8 -8 --------- Run | Jun Mat Min Exi Min Mat Gar Mat Gar Mat Machines Accessed 19 | . 1 1 1 . 4 3 7 2 . Terminals 14 | . 1 . . . 3 3 5 2 . Fabricators . | . . . . . . . . . . Repair Stations 1 | . . . . . . . 1 . . Recycling Units . | . . . . . . . . . . Scanalyzers . | . . . . . . . . . . Garrison Access 2 | . . . . . 1 . 1 . . Total Hacks 47 | . 2 1 1 . 10 8 22 3 . Successful 20 | . . 1 1 . 4 3 10 1 . Failed 27 | . 2 . . . 6 5 12 2 . Catastrophic 7 | . 1 . . . . 2 2 2 . Database Lockouts . | . . . . . . . . . . Manual 18 | . 2 . 1 . 5 . 10 . . Terminals 41 | . 2 . . . 9 8 19 3 . Fabricators . | . . . . . . . . . . Repair Stations 2 | . . . . . . . 2 . . Recycling Units . | . . . . . . . . . . Scanalyzers . | . . . . . . . . . . Garrison Access 2 | . . . . . 1 . 1 . . Terminal Hacks 12 | . . 1 1 . 2 3 4 1 . Record 1 | . . . . . 1 . . . . Prototype ID Bank 2 | . . . . . 1 . 1 . . Open Door 1 | . . 1 . . . . . . . Branch Access Points 1 | . . . . . . . 1 . . Emergency Access Points 2 | . . . . . . 1 . 1 . Unreport Threat 2 | . . . . . . . 2 . . Security Stations 2 | . . . . . . 2 . . . EX-Prototype ID Bank 1 | . . . 1 . . . . . . Fabricator Hacks . | . . . . . . . . . . Repair Station Hacks 2 | . . . . . . . 2 . . Scan Component 1 | . . . . . . . 1 . . Repair 1 | . . . . . . . 1 . . Recycling Unit Hacks . | . . . . . . . . . . Scanalyzer . | . . . . . . . . . . Garrison Access Hacks 2 | . . . . . 1 . 1 . . Unlock Access 2 | . . . . . 1 . 1 . . Unauthorized Hacks 4 | . . . . . 1 . 3 . . Terminals 4 | . . . . . 1 . 3 . . Botnet 4 | . . . . . 1 . 3 . . Fabricators . | . . . . . . . . . . Repair Stations . | . . . . . . . . . . Recycling Units . | . . . . . . . . . . Scanalyzers . | . . . . . . . . . . Garrison Access . | . . . . . . . . . . Data Cores Recovered 1 | . . . . . . . . . 1 Used . | . . . . . . . . . . Hacking Detections 13 | . 1 . . . 3 3 5 1 . Full Trace Events 4 | . 1 . . . . 1 2 . . Feedback Events . | . . . . . . . . . . Feedback Blocked . | . . . . . . . . . . Robot Schematics Acquired . | . . . . . . . . . . Robots Built . | . . . . . . . . . . Authchips . | . . . . . . . . . . Time . | . . . . . . . . . . Total Robot Build Rating . | . . . . . . . . . . Part Schematics Acquired . | . . . . . . . . . . Parts Built . | . . . . . . . . . . Authchips . | . . . . . . . . . . Time . | . . . . . . . . . . Total Part Build Rating . | . . . . . . . . . . Parts Repaired 1 | . . . . . . . 1 . . Time 60 | . . . . . . . 60 . . Parts Recycled . | . . . . . . . . . . Recycled Matter . | . . . . . . . . . . Retrieved Matter . | . . . . . . . . . . Retrieved Components . | . . . . . . . . . . Parts Scanalyzed . | . . . . . . . . . . Part Schematics Acquired . | . . . . . . . . . . Parts Damaged . | . . . . . . . . . . Bothacking | -11 -10 -10 -10 -9 -8 -8 -8 -8 -8 ------------ Run | Jun Mat Min Exi Min Mat Gar Mat Gar Mat Used RIF Installer . | . . . . . . . . . . Robots Hacked . | . . . . . . . . . . Non-combat . | . . . . . . . . . . Combat . | . . . . . . . . . . Robot Hacks Applied . | . . . . . . . . . . Relay Couplers Released 3 | . . . . . . 3 . . . Programmers 3 | . . . . . . 3 . . . Fabnet Peak Effective % . | . . . . . . . . . . Robots Rewired . | . . . . . . . . . . Allies Hacked . | . . . . . . . . . . Hacks Repelled . | . . . . . . . . . . Allies | -11 -10 -10 -10 -9 -8 -8 -8 -8 -8 -------- Run | Jun Mat Min Exi Min Mat Gar Mat Gar Mat Total Allies . | . . . . . . . . . . Largest Group . | . . . . . . . . . . Highest-Rated Group . | . . . . . . . . . . Highest-Rated Ally . | . . . . . . . . . . Total Orders . | . . . . . . . . . . Ally Attacks . | . . . . . . . . . . Total Damage . | . . . . . . . . . . Kills . | . . . . . . . . . . Allies Corrupted . | . . . . . . . . . . Allies Melted . | . . . . . . . . . . Intel | -11 -10 -10 -10 -9 -8 -8 -8 -8 -8 ------- Run | Jun Mat Min Exi Min Mat Gar Mat Gar Mat Robot Analysis Total . | . . . . . . . . . . Derelict Logs Recovered 1 | . . 1 . . . . . . . Drone Launches . | . . . . . . . . . . Drone Recoveries . | . . . . . . . . . . Exploration | -11 -10 -10 -10 -9 -8 -8 -8 -8 -8 ------------- Run | Jun Mat Min Exi Min Mat Gar Mat Gar Mat Turns Passed 7502 | . 212 735 533 100 777 1947 1778 990 430 Spaces Moved 3122 | 1 126 374 281 52 280 829 691 353 135 Core 1 | . . . . . 1 . . . . Treads 1158 | . . . . . 147 285 238 353 135 Legs 1963 | 1 126 374 281 52 132 544 453 . . Wheels . | . . . . . . . . . . Hover . | . . . . . . . . . . Flight . | . . . . . . . . . . Fastest Speed 120 | 120 120 190 190 190 190 190 185 165 245 Average Speed 206 | 120 129 190 190 190 224 207 205 235 245 Slowest Speed 750 | 120 190 190 190 190 750 240 330 245 245 Overloaded Moves . | . . . . . . . . . . Propulsion Burnouts . | . . . . . . . . . . Robots Hopped . | . . . . . . . . . . Cave-ins Triggered . | . . . . . . . . . . Exploration Rate (%) 41 | 2 31 72 63 16 34 87 57 35 16 Regions Visited 9 Branch Regions 3 Pre-discovered Areas 2 | . . 2 . . . . . . . Known Exits Taken 2 | . . . . . 1 . 1 . . Unknown Exits Taken 5 | 1 1 1 1 1 . . . . . Scrap Searched 3 | . . 2 . 1 . . . . . Spaces Dug 10 | . . . . . . . 10 . . Terrain Destroyed 60 | . 5 . . . 24 12 10 7 2 Melee 10 | . . . . . . . 10 . . Projectile 2 | . . . . . . . . . 2 AOE 48 | . 5 . . . 24 12 . 7 . Terrain Rammed . | . . . . . . . . . . Walls Destroyed . | . . . . . . . . . . Machines Disabled . | . . . . . . . . . . Actions | -11 -10 -10 -10 -9 -8 -8 -8 -8 -8 --------- Run | Jun Mat Min Exi Min Mat Gar Mat Gar Mat Total 3813 | . 152 395 281 55 381 979 936 443 191 Wait 203 | . 1 9 . . 13 27 117 22 14 Move 3114 | . 125 373 280 51 279 828 691 352 135 Hop . | . . . . . . . . . . Pick Up 66 | . 6 8 1 2 10 7 18 4 10 Fast Attach 19 | . . . . . 9 1 8 1 . Attach 23 | . 1 . . . 3 2 7 6 4 Detach . | . . . . . . . . . . Swap 52 | . 1 2 . . 8 17 9 12 3 Drop 49 | . 4 1 . 2 18 7 15 1 1 Fire 227 | . 14 2 . . 41 53 60 34 23 Melee 36 | . . . . . . 20 11 5 . Ram . | . . . . . . . . . . Kick . | . . . . . . . . . . Crush 1 | . . . . . . . . . 1 Escape Stasis 23 | . . . . . . 17 . 6 . Rewire . | . . . . . . . . . . Trap . | . . . . . . . . . . Miscellaneous . | . . . . . . . . . . Route ------- -11/Junkyard -10/Materials -10/Mines (discovered 3 exits: [*Mat x2] / *Exi) -10/Exiles -9/Mines -8/Materials -8/Garrison (discovered 3 exits: *Mat x3) -8/Materials (discovered 5 exits: [*Fac x2] / *Sto x2 / Gar) -8/Garrison -8/Materials History --------- Turn | Location | Event 1 | -11/Junkyard | Discovered new exit (range 0) 1 | -11/Junkyard | Entered Materials 131 | -10/Materials | Discovered new exit (range 16) 213 | -10/Materials | Entered Mines 216 | -10/Mines | Met a Derelict shopkeep closing up shop 282 | -10/Mines | Discovered new exit (range 5) 295 | -10/Mines | Discovered new exit (range 15) 318 | -10/Mines | Build established: Mutant 558 | -10/Mines | A weapon hastily lodged in a ceiling crevice suddenly fell to the ground 877 | -10/Mines | Learned location of Storage (-8) 939 | -10/Mines | Deemed a non-threat by the Exiles lab entrance 939 | -10/Mines | Discovered new exit (range 5) 948 | -10/Mines | Entered Exiles 998 | -10/Exiles | Met 8R-AWN 1032 | -10/Exiles | Met EX-HEX 1100 | -10/Exiles | Met EX-BIN 1140 | -10/Exiles | Aligned with FarCom system 1142 | -10/Exiles | Given EX-Vault access code 1192 | -10/Exiles | Opened EX-Vault 1294 | -10/Exiles | Found Longsword +1 1339 | -10/Exiles | Warned to stay clear of 0b10 Research branches 1392 | -10/Exiles | Met EX-DEC 1457 | -10/Exiles | Discovered new exit (range 14) 1481 | -10/Exiles | Left Exiles lab with Longsword +1 1481 | -10/Exiles | Entered Mines 1488 | -9/Mines | Received a Rocket Launcher from a helpful Derelict 1553 | -9/Mines | Discovered new exit (range 16) 1581 | -9/Mines | Entered Materials 1581 | -8/Materials | Evolved 4 slots: Utility x2, Weapon x2 1706 | -8/Materials | Destroyed 9 combat bots 1992 | -8/Materials | Build established: Gunner 2110 | -8/Materials | Garrison activated, responded to threat 2354 | -8/Materials | Identified exit to Garrison 2358 | -8/Materials | Entered Garrison 2460 | -8/Garrison | Triggered checkpoint 2670 | -8/Garrison | Triggered checkpoint 2757 | -8/Garrison | Discovered new exit (range 12) 2842 | -8/Garrison | Triggered checkpoint 3061 | -8/Garrison | Triggered checkpoint 3093 | -8/Garrison | Triggered checkpoint 3120 | -8/Garrison | Triggered checkpoint 3404 | -8/Garrison | Triggered checkpoint 3436 | -8/Garrison | Learned Materials security intel 3436 | -8/Garrison | Learned Materials security intel 3712 | -8/Garrison | Discovered new exit (range 13) 3784 | -8/Garrison | Phase Generator disabled 4028 | -8/Garrison | Discovered new exit (range 6) 4124 | -8/Garrison | Triggered checkpoint 4129 | -8/Garrison | Met a derelict Sapper fleeing the area 4305 | -8/Garrison | Entered Materials 4383 | -8/Materials | Repaired Enh. Autogun 4712 | -8/Materials | Discovered new exit (range 11) 4880 | -8/Materials | Identified exit to Storage 4977 | -8/Materials | Discovered new exit (range 14) 4978 | -8/Materials | Core integrity fell below 50% 5030 | -8/Materials | Lost 3 parts (1p1n1u) 5387 | -8/Materials | Build established: Skirmisher 6029 | -8/Materials | Garrison activated, responded to threat 6083 | -8/Materials | Identified exit to Garrison 6083 | -8/Materials | Entered Garrison 6206 | -8/Garrison | Triggered checkpoint 6370 | -8/Garrison | Triggered checkpoint 6500 | -8/Garrison | Triggered checkpoint 6577 | -8/Garrison | Destroyed 8 combat bots 6726 | -8/Garrison | Triggered checkpoint 6812 | -8/Garrison | Core integrity fell below 20% 6873 | -8/Garrison | Discovered new exit (range 3) 6967 | -8/Garrison | Spotted B-75 Beast 7073 | -8/Garrison | Entered Materials 7079 | -8/Materials | Lost 6 parts (2p1n1u2w) 7445 | -8/Materials | Garrison activated, responded to threat 7473 | -8/Materials | First assault squad dispatched 7503 | -8/Materials | Destroyed by L-31 Rogue with Katana Last Messages --------------- 07469_ Y-45 Defender destroyed. 07470_ K-01 Serf collects debris. 07473_ ALERT: Significant disruption in Zone 4H, assault force dispatched. 07475_ K-01 Serf collects debris. 07477_ Acquired 20 matter. 07479_ K-01 Serf collects debris. 07479_ Acquired 21 matter. 07481_ K-01 Serf collects debris. 07488_ C-30 ARC bursts open, deploying its payload. 07488_ G-50 Soldier unfolds itself. 07488_ G-47 Trooper unfolds itself. 07488_ L-31 Rogue unfolds itself. 07488_ G-47 Trooper unfolds itself. 07488_ I-25 Savior unfolds itself. 07490_ K-01 Serf collects debris. 07492_ Acquired 56 matter. 07493_ K-01 Serf collects debris. 07499_ M-13 Machinist repairs L-31 Rogue. 07503_ System corrupted: Enh. Nuclear Core rejected. 07503_ Enh. Autogun destroyed. Map ----- +----------------------------------------------------+ | ?????????????????????????????????????????????????? | | ?????????????????????????????????????????########? | | ?????????????????????????????????????????# | | ?????????????????????????????????????????# | | ?????????????????????????????????????????# | | ?????????????????????????????????????????# | | ????????????????????????????? ????????????"" """ | | ????????????????????????????# #???????????"" """ | | ????????????????????????????# #???????????"" """ | | ????????????????????????????# #??????????? | | ????????????????????????????# #???????????###### | | ????????????????????????????# #???????????# | | ????????????????????????????+ +???????????# """ | | ????????????????????????????# #???????????# """ | | ????????????????????????????# #???????????# """ | | ????????????????????????????# #???????????# | | ????????????????????????????# #???????????#! = | | ????????????????????????????# #???????????###### | | ????????????????????????????# #????????????????? | | ????????????????????????????# #????????????????? | | ????????????????????????????#! ################## | | ????????????????????????????# * | | ????????????????????????????# | | ??????????????? ############# *% | | ???????????????? + #* =############## | | ?????????????????????# @l #% [#????????????# | | ?????????????????????# !+ [!#????????????#! | | ?????????????????????# #gm=#????????????##!!! | | ?????????????????????# #g*[#?????????????#### | | ?????????????????????# #%[[#????????????????? | | ?????????????????????########[[=#????????????????? | | ????????????????????????????#*= #????????????????? | | ????????????????????????????# #????????????????? | | ????????????????????????????# +????????????????? | | ????????????????????????????#g #????????????????? | | ????????????????????????????#!=%#????????????????? | | ?????????????????????????i??#[%*#????????????????? | | ???????????????????????????? = ??^?????????????? | | ???????????????????????????? ??^?????????????? | | ???????????????????????????? ??^?????????????? | | ???????????????????????????###+##????????????????? | | ?????????????????????????????????????????????????? | | ?????????????????????????????????????????????????? | | ?????????????????????????????????????????????????? | | ?????????????????????????????????????????????????? | | ?????????????????????????????????????????????????? | | ?????????????????????????????????????????????????? | | ?????????????????????????????????????????????????? | | ?????????????????????????????????????????????????? | | ?????????????????????????????????????????????????? | +----------------------------------------------------+ Best States ------------- Heat Dissipation 45 Energy Generation 18 Energy Capacity 310 Matter Stores 300 Matter Capacity 300 Sight Range 16 Terrain Scan Density 10 Armor Coverage 150 Evasion (%) 55 Targeting Accuracy 24 Recoil Reduction 6 Offensive Hacking 10 Item Schematics ----------------- None Robot Schematics ------------------ None Fabricated ------------ Nothing Alien Tech Used ----------------- None Achievements -------------- None Challenges ------------ None Game ------ Seed RecyclingAlphaShearcannon Manual? 0 Play Time 00:58:41 Cumulative 52.0 hours Start 2023.03.03 @ 12:37:25 End 2023.03.03 @ 21:02:11 Sessions 5 Manual Loads 0 Difficulty Rogue Special Mode None Game No. 55 Rogue 55 Adventurer 0 Explorer 0 Win Type - Total 0 Types 0/0/0/0/0/0/0/0/0 Lore% 39 Gallery% 47 Achievement% 42 Wizard Run 0 Options --------- ASCII 0 Keyboard 0 Movement Arrows Keybinds 0 Fullscreen 1 Font 18/X11Bold Map View 76x50 Tactical HUD 1 Map Filters NONE Filters NONE Steam 1 RUN: 867a8784-fe61-4334-8c8b-4e040bd218f2